[Event "ISR-chT 2019"]
[Site "Israel"]
[Date "2019.02.08"]
[Round "3.33"]
[White "Raznikov, Danny"]
[Black "Poleg, Matan"]
[Result "1-0"]
[ECO "A48"]
[WhiteElo "2497"]
[BlackElo "2205"]
[Annotator "ChessBase"]
[PlyCount "83"]
[EventDate "2019.01.04"]
[EventType "team-tourn"]
[EventCountry "ISR"]
[SourceTitle "playchess.com"]
[Source "ChessBase"]
[SourceQuality "1"]
[TimeControl "40/5400+30:1800+30"]

1. d4 {[%emt 0:00:00]} Nf6 {[%emt 0:02:39]} 2. Bf4 {[%emt 0:00:00]} g6 {[%emt 0:00:30]} 3. e3 {[%emt 0:00:25]} d6 {[%emt 0:00:30]} 4. Nf3 {[%emt 0:00:30]} Nh5 {[%emt 0:00:30]} 5. Bg5 {[%emt 0:00:30]} h6 {[%emt 0:00:30]} 6. Bh4 {[%emt 0:00:30]} g5 {[%emt 0:00:30]} 7. Nfd2 {[%emt 0:00:30]} Ng7 {[%emt 0:00:30]} 8. Bg3 {[%emt 0:00:30]} Nf5 {[%emt 0:00:30]} 9. Bd3 {[%emt 0:00:30]} Nxg3 {[%emt 0:00:30]} 10. hxg3 {[%emt 0:00:30]} Bg7 {[%emt 0:00:30]} 11. c3 {[%emt 0:00:30]} Nd7 {[%emt 0:00:30]} 12. f4 {[%emt 0:00:30]} Nf6 {[%emt 0:00:30]} 13. fxg5 {[%emt 0:00:30]} hxg5 {[%emt 0:00:30]} 14. Rxh8+ {[%emt 0:00:30]} Bxh8 {[%emt 0:00:30]} 15. Ne4 {[%emt 0:00:30]} g4 {[%emt 0:00:30]} 16. Nxf6+ {[%emt 0:00:30]} Bxf6 {[%emt 0:00:30]} 17. Nd2 {[%emt 0:00:30]} d5 {[%emt 0:00:30]} 18. e4 {[%emt 0:00:30]} Be6 {[%emt 0:00:30]} 19. e5 {[%emt 0:00:30]} Bg5 {[%emt 0:00:30]} 20. Nb3 {[%emt 0:00:30]} b6 {[%emt 0:00:30]} 21. Qc2 {[%emt 0:00:30]} Qd7 {[%emt 0:00:30]} 22. Ke2 {[%emt 0:00:30]} O-O-O {[%emt 0:00:30]} 23. Nc5 {[%emt 0:00:30]} Qe8 {[%emt 0:00:30]} 24. Ba6+ {[%emt 0:00:30]} Kb8 {[%emt 0:00:30]} 25. Nxe6 {[%emt 0:00:30]} fxe6 {[%emt 0:00:30]} 26. Rh1 {[%emt 0:00:30]} c6 {[%emt 0:00:30]} 27. Bd3 {[%emt 0:00:30]} c5 {[%emt 0:00:30]} 28. Ba6 {[%emt 0:00:30]} Qc6 {[%emt 0:00:30]} 29. Qg6 {[%emt 0:00:30]} b5 {[%emt 0:00:30]} 30. Qxg5 {[%emt 0:00:30]} Qxa6 {[%emt 0:00:30]} 31. Qxe7 {[%emt 0:00:30]} b4+ {[%emt 0:00:30]} 32. Ke3 {[%emt 0:00:30]} cxd4+ {[%emt 0:00:30]} 33. cxd4 {[%emt 0:00:30]} Qc8 {[%emt 0:00:30]} 34. Kd2 {[%emt 0:00:30]} Rf8 {[%emt 0:00:30]} 35. Rh7 {[%emt 0:00:30]} Rf2+ {[%emt 0:00:30]} 36. Ke3 {[%emt 0:00:30]} Re2+ {[%emt 0:00:30]} 37. Kf4 {[%emt 0:00:30]} Qc1+ {[%emt 0:00:30]} 38. Kxg4 {[%emt 1:30:14]} Re4+ {[%emt 1:10:18]} 39. Kh5 {[%emt 0:00:14]} Qd1+ {[%emt 0:08:58]} 40. Kh6 {[%emt 0:00:30]} Qc1+ {[%emt 0:00:30]} 41. Kg6 {[%emt 0:30:30]} Rg4+ {[%emt 0:30:30]} 42. Kh5 {[%emt 0:00:30]} 1-0

[Event "ISR-chT 2019"]
[Site "Israel"]
[Date "2019.02.15"]
[Round "5.3"]
[White "Kantarji, Pinchas"]
[Black "Poleg, Matan"]
[Result "1/2-1/2"]
[ECO "E11"]
[WhiteElo "2445"]
[BlackElo "2205"]
[Annotator "NA"]
[PlyCount "62"]
[EventDate "2019.01.04"]
[EventType "team-tourn"]
[EventCountry "ISR"]
[SourceTitle "playchess.com"]
[Source "ChessBase"]
[SourceQuality "1"]
[TimeControl "40/5400+30:1800+30"]

1. d4 {[%emt 0:00:00]} Nf6 {[%emt 0:00:29]} 2. c4 {[%emt 0:03:05]} e6 {[%emt 0:00:27]} 3. Nf3 {[%emt 0:00:18]} Bb4+ {[%emt 0:00:35]} 4. Bd2 {[%emt 0:00:42]} a5 {[%emt 0:00:13]} 5. Nc3 {[%emt 0:05:02]} O-O {[%emt 0:02:25]} 6. e3 {[%emt 0:02:55]} d5 {[%emt 0:03:06]} 7. a3 {[%emt 0:05:03]} Be7 {[%emt 0:01:32]} 8. Rc1 {[%emt 0:05:50]} Ne4 {[%emt 0:06:34]} 9. Bd3 {[%emt 0:03:16]} Nxd2 {[%emt 0:05:22]} 10. Qxd2 {[%emt 0:00:15]} c6 {[%emt 0:04:40]} 11. O-O {[%emt 0:03:10]} Nd7 {[%emt 0:05:30]} 12. Rfd1 {[%emt 0:03:18]} f5 {[%emt 0:07:25]} 13. Qc2 {[%emt 0:02:13]} g6 {[%emt 0:03:57]} 14. Ne5 {[%emt 0:04:42]} Bd6 {[%emt 0:04:25]} 15. f4 {[%emt 0:03:05]} Nf6 {[%emt 0:01:03]} 16. Be2 {[%emt 0:03:59]} Ne4 {[%emt 0:05:07]} 17. c5 {[%emt 0:12:22]} Bxe5 {[%emt 0:02:02]} 18. fxe5 {[%emt 0:01:06]} Qg5 {[%emt 0:01:01]} 19. Nxe4 {[%emt 0:05:03]} fxe4 {[%emt 0:01:18]} 20. Qd2 {[%emt 0:00:39]} Bd7 {[%emt 0:01:25]} 21. Rf1 {[%emt 0:02:17]} Rf5 {[%emt 0:01:27]} 22. Rf4 {[%emt 0:03:42]} Raf8 {[%emt 0:04:14]} 23. Rcf1 {[%emt 0:01:58]} Qd8 {[%emt 0:00:49]} 24. g3 {[%emt 0:03:40]} b5 {[%emt 0:04:45]} 25. b3 {[%emt 0:04:16]} g5 {[%emt 0:05:07]} 26. R4f2 {[%emt 0:01:12]} Rxf2 {[%emt 0:05:14]} 27. Rxf2 {[%emt 0:00:06]} Rxf2 {[%emt 0:00:04]} 28. Kxf2 {[%emt 0:00:06]} Kf7 {[%emt 0:00:10]} 29. Ke1 {[%emt 0:07:59]} Ke7 {[%emt 0:03:40]} 30. Bg4 {[%emt 0:01:06]} Qa8 {[%emt 0:00:31]} 31. Bh5 {[%emt 0:04:12]} Qd8 {[%emt 0:02:14]} 1/2-1/2

[Event "ISR-chT 2019"]
[Site "Israel"]
[Date "2019.02.15"]
[Round "5.5"]
[White "Mesropov, Konstantin"]
[Black "Lurie, Michael"]
[Result "1/2-1/2"]
[ECO "A45"]
[WhiteElo "2431"]
[BlackElo "2331"]
[Annotator "NA"]
[PlyCount "51"]
[EventDate "2019.01.04"]
[EventType "team-tourn"]
[EventCountry "ISR"]
[SourceTitle "playchess.com"]
[Source "ChessBase"]
[SourceQuality "1"]
[TimeControl "40/5400+30:1800+30"]

1. d4 {[%emt 0:00:00]} Nf6 {[%emt 0:00:00]} 2. Bg5 {[%emt 0:04:44]} g6 {[%emt 0:00:00]} 3. Bxf6 {[%emt 0:00:44]} exf6 {[%emt 0:00:00]} 4. e4 {[%emt 0:00:31]} Bg7 {[%emt 0:01:52]} 5. Nf3 {[%emt 0:00:19]} O-O {[%emt 0:02:18]} 6. Bd3 {[%emt 0:00:08]} c5 {[%emt 0:00:24]} 7. O-O {[%emt 0:01:46]} cxd4 {[%emt 0:01:16]} 8. Nxd4 {[%emt 0:02:57]} f5 {[%emt 0:01:19]} 9. c3 {[%emt 0:00:21]} fxe4 {[%emt 0:06:49]} 10. Bxe4 {[%emt 0:00:05]} d5 {[%emt 0:01:19]} 11. Bf3 {[%emt 0:01:49]} Nc6 {[%emt 0:02:06]} 12. Nb3 {[%emt 0:01:06]} Be6 {[%emt 0:01:00]} 13. Na3 {[%emt 0:02:08]} Ne5 {[%emt 0:02:42]} 14. Be2 {[%emt 0:10:30]} Qb6 {[%emt 0:02:58]} 15. Nc2 {[%emt 0:05:59]} a5 {[%emt 0:07:14]} 16. Ncd4 {[%emt 0:05:33]} Bd7 {[%emt 0:01:35]} 17. Rb1 {[%emt 0:06:52]} Rad8 {[%emt 0:15:01]} 18. Nd2 {[%emt 0:04:54]} a4 {[%emt 0:04:08]} 19. N2f3 {[%emt 0:09:19]} Nc6 {[%emt 0:04:25]} 20. h3 {[%emt 0:09:34]} Rfe8 {[%emt 0:04:08]} 21. Qd2 {[%emt 0:03:38]} Nxd4 {[%emt 0:05:10]} 22. Nxd4 {[%emt 0:00:12]} Bxd4 {[%emt 0:00:19]} 23. cxd4 {[%emt 0:28:21]} Rxe2 {[%emt 0:00:10]} 24. Qxe2 {[%emt 0:00:00]} Bb5 {[%emt 0:35:47]} 25. Qd2 {[%emt 0:01:00]} Bxf1 26. Rxf1 1/2-1/2

[Event "ISR-chT 2019"]
[Site "Israel"]
[Date "2019.02.15"]
[Round "5.9"]
[White "Vydeslaver, Alik"]
[Black "Kogan, Arthur"]
[Result "0-1"]
[ECO "D02"]
[WhiteElo "2386"]
[BlackElo "2547"]
[Annotator "ChessBase"]
[PlyCount "70"]
[EventDate "2019.01.04"]
[EventType "team-tourn"]
[EventCountry "ISR"]
[SourceTitle "playchess.com"]
[Source "ChessBase"]
[SourceQuality "1"]
[TimeControl "40/5400+30:1800+30"]

1. Nf3 {[%emt 1:30:30]} d5 {[%emt 0:00:27]} 2. d4 {[%emt 0:00:00]} Nf6 {[%emt 0:00:47]} 3. Bf4 {[%emt 0:00:00]} c5 {[%emt 0:02:25]} 4. e3 {[%emt 0:00:00]} Nc6 {[%emt 0:00:24]} 5. c3 {[%emt 0:00:00]} Qb6 {[%emt 0:02:09]} 6. Qb3 {[%emt 0:00:00]} c4 {[%emt 0:00:25]} 7. Qxb6 {[%emt 0:00:00]} axb6 {[%emt 0:00:19]} 8. Be2 {[%emt 0:00:00]} e6 {[%emt 0:05:54]} 9. Nbd2 {[%emt 0:00:00]} b5 {[%emt 0:00:45]} 10. Ne5 {[%emt 0:00:00]} b4 {[%emt 0:02:03]} 11. O-O {[%emt 0:00:00]} Nd7 {[%emt 0:05:07]} 12. Nxd7 {[%emt 0:00:00]} Bxd7 {[%emt 0:00:56]} 13. e4 {[%emt 0:00:00]} bxc3 {[%emt 0:13:50]} 14. bxc3 {[%emt 0:00:00]} Ba3 {[%emt 0:00:11]} 15. exd5 {[%emt 0:00:00]} exd5 {[%emt 0:00:18]} 16. Bf3 {[%emt 0:00:00]} Ne7 {[%emt 0:01:57]} 17. Rae1 {[%emt 0:00:55]} Kd8 {[%emt 0:21:28]} 18. Nb1 {[%emt 0:05:11]} Ng6 {[%emt 0:00:57]} 19. Nxa3 {[%emt 0:01:36]} Nxf4 {[%emt 0:19:26]} 20. Nc2 {[%emt 0:00:01]} Be6 {[%emt 0:01:04]} 21. Nb4 {[%emt 0:01:13]} Ra5 {[%emt 0:00:48]} 22. g3 {[%emt 0:00:27]} Ng6 {[%emt 0:00:26]} 23. Rb1 {[%emt 0:00:26]} Kc7 {[%emt 0:00:28]} 24. Rb2 {[%emt 0:00:10]} Rha8 {[%emt 0:01:09]} 25. Rfb1 {[%emt 0:00:50]} R8a7 {[%emt 0:00:15]} 26. Re1 {[%emt 0:00:22]} Kd6 {[%emt 0:01:41]} 27. Reb1 {[%emt 0:01:03]} Ne7 {[%emt 0:01:12]} 28. Bd1 {[%emt 0:00:44]} Ra3 {[%emt 0:01:42]} 29. Rc1 {[%emt 0:00:31]} Nc6 {[%emt 0:02:08]} 30. Kf1 {[%emt 0:00:24]} Nxb4 {[%emt 0:00:58]} 31. Rxb4 {[%emt 0:00:01]} Rxa2 {[%emt 0:00:15]} 32. Ke1 {[%emt 0:00:02]} Bf5 {[%emt 0:02:02]} 33. Rb6+ {[%emt 0:00:36]} Kc7 {[%emt 0:00:11]} 34. Rb5 {[%emt 0:00:16]} Be4 {[%emt 0:04:03]} 35. h4 {[%emt 0:00:21]} Ra8 {[%emt 0:01:25]} 0-1

[Event "ISR-chT 2019"]
[Site "Israel"]
[Date "2019.02.15"]
[Round "5.15"]
[White "Grinberg, Eyal"]
[Black "Raznikov, Danny"]
[Result "1/2-1/2"]
[ECO "C49"]
[WhiteElo "2470"]
[BlackElo "2497"]
[Annotator "ChessBase"]
[PlyCount "46"]
[EventDate "2019.01.04"]
[EventType "team-tourn"]
[EventCountry "ISR"]
[SourceTitle "playchess.com"]
[Source "ChessBase"]
[SourceQuality "1"]
[TimeControl "40/5400+30:1800+30"]

1. e4 {[%emt 0:00:00]} e5 {[%emt 0:00:00]} 2. Nf3 {[%emt 0:00:11]} Nc6 {[%emt 0:00:00]} 3. Bb5 {[%emt 0:00:17]} Nf6 {[%emt 0:00:18]} 4. d3 {[%emt 0:00:40]} Bc5 {[%emt 0:00:34]} 5. c3 {[%emt 0:01:07]} O-O {[%emt 0:00:30]} 6. O-O {[%emt 0:00:08]} d6 {[%emt 0:03:05]} 7. Re1 {[%emt 0:03:20]} Ne7 {[%emt 0:01:03]} 8. Nbd2 {[%emt 0:10:25]} c6 {[%emt 0:01:45]} 9. Ba4 {[%emt 0:00:40]} Ng6 {[%emt 0:00:34]} 10. Nf1 {[%emt 0:06:17]} Re8 {[%emt 0:01:30]} 11. Ng3 {[%emt 0:04:29]} Bb6 {[%emt 0:01:05]} 12. h3 {[%emt 0:03:57]} h6 {[%emt 0:01:17]} 13. d4 {[%emt 0:02:02]} Bc7 {[%emt 0:03:41]} 14. Bc2 {[%emt 0:02:45]} Be6 {[%emt 0:05:04]} 15. Be3 {[%emt 0:02:25]} d5 {[%emt 0:13:37]} 16. Nxe5 {[%emt 0:11:41]} Nxe5 {[%emt 0:04:57]} 17. dxe5 {[%emt 0:00:09]} Nxe4 {[%emt 0:00:14]} 18. Nxe4 {[%emt 0:03:06]} dxe4 {[%emt 0:00:06]} 19. Bd4 {[%emt 0:02:52]} Qg5 {[%emt 0:07:15]} 20. Bxe4 {[%emt 0:06:06]} Bxh3 {[%emt 0:53:25]} 21. f4 {[%emt 0:05:20]} Qg3 {[%emt 0:00:00]} 22. Qf3 {[%emt 0:11:52]} Qxf3 {[%emt 0:00:00]} 23. Bxf3 {[%emt 0:00:05]} Be6 {[%emt 0:00:00]} 1/2-1/2

[Event "ISR-chT 2019"]
[Site "Israel"]
[Date "2019.02.15"]
[Round "5.16"]
[White "Kobo, Ori"]
[Black "Givon, Asaf"]
[Result "1/2-1/2"]
[ECO "B36"]
[WhiteElo "2485"]
[BlackElo "2465"]
[Annotator "ChessBase"]
[PlyCount "50"]
[EventDate "2019.01.04"]
[EventType "team-tourn"]
[EventCountry "ISR"]
[SourceTitle "playchess.com"]
[Source "ChessBase"]
[SourceQuality "1"]
[TimeControl "40/5400+30:1800+30"]

1. e4 {[%emt 0:00:00]} c5 {[%emt 0:11:29]} 2. Nf3 {[%emt 0:01:26]} g6 {[%emt 0:00:28]} 3. d4 {[%emt 0:00:53]} cxd4 {[%emt 0:00:07]} 4. Nxd4 {[%emt 0:00:06]} Nc6 {[%emt 0:00:18]} 5. c4 {[%emt 0:01:16]} Nf6 {[%emt 0:00:59]} 6. Nc3 {[%emt 0:00:25]} d6 {[%emt 0:00:07]} 7. Be2 {[%emt 0:01:51]} Nxd4 {[%emt 0:00:18]} 8. Qxd4 {[%emt 0:00:06]} Bg7 {[%emt 0:00:05]} 9. Be3 {[%emt 0:00:20]} O-O {[%emt 0:00:16]} 10. Qd2 {[%emt 0:00:15]} a5 {[%emt 0:00:36]} 11. f3 {[%emt 0:02:20]} a4 {[%emt 0:05:02]} 12. Kf2 {[%emt 0:01:10]} Qa5 {[%emt 0:02:47]} 13. Rac1 {[%emt 0:11:44]} Be6 {[%emt 0:23:32]} 14. Nd5 {[%emt 0:00:21]} Bxd5 {[%emt 0:00:27]} 15. Qxa5 {[%emt 0:00:19]} Rxa5 {[%emt 0:00:01]} 16. cxd5 {[%emt 0:00:13]} Nd7 {[%emt 0:00:01]} 17. Rc7 {[%emt 0:05:25]} Nc5 {[%emt 0:01:17]} 18. Rb1 {[%emt 0:07:45]} Rb8 {[%emt 0:12:38]} 19. Kf1 {[%emt 0:24:05]} Kf8 {[%emt 0:08:54]} 20. Bg5 {[%emt 0:10:06]} Bf6 {[%emt 0:08:39]} 21. Bxf6 {[%emt 0:01:56]} exf6 {[%emt 0:00:01]} 22. b4 {[%emt 0:00:54]} axb3 {[%emt 0:00:02]} 23. axb3 {[%emt 0:00:07]} Ra3 {[%emt 0:02:38]} 24. b4 {[%emt 0:09:14]} Na4 {[%emt 0:01:06]} 25. Rbc1 {[%emt 0:10:24]} Nb6 {[%emt 0:00:28]} 1/2-1/2

[Event "ISR-chT 2019"]
[Site "Israel"]
[Date "2019.02.15"]
[Round "5.20"]
[White "Erenberg, Ariel"]
[Black "Gorodetzky, David"]
[Result "0-1"]
[ECO "A13"]
[WhiteElo "2396"]
[BlackElo "2447"]
[Annotator "NA"]
[PlyCount "64"]
[EventDate "2019.01.04"]
[EventType "team-tourn"]
[EventCountry "ISR"]
[SourceTitle "playchess.com"]
[Source "ChessBase"]
[SourceQuality "1"]
[TimeControl "40/5400+30:1800+30"]

1. c4 {[%emt 0:00:14]} e6 {[%emt 0:02:11]} 2. Nc3 {[%emt 0:00:12]} Bb4 {[%emt 0:07:48]} 3. Qb3 {[%emt 0:00:09]} a5 {[%emt 0:09:03]} 4. a3 {[%emt 0:01:21]} Bxc3 {[%emt 0:02:03]} 5. Qxc3 {[%emt 0:00:02]} Nf6 {[%emt 0:00:10]} 6. b3 {[%emt 0:02:28]} O-O {[%emt 0:05:21]} 7. Bb2 {[%emt 0:01:02]} d6 {[%emt 0:01:40]} 8. d4 {[%emt 0:04:31]} a4 {[%emt 0:03:59]} 9. b4 {[%emt 0:02:18]} b5 {[%emt 0:00:19]} 10. cxb5 {[%emt 0:29:22]} Bb7 {[%emt 0:07:52]} 11. Nf3 {[%emt 0:00:38]} Nbd7 {[%emt 0:02:51]} 12. e3 {[%emt 0:02:04]} Nb6 {[%emt 0:09:21]} 13. Bd3 {[%emt 0:01:13]} Ne4 {[%emt 0:04:22]} 14. Qc2 {[%emt 0:06:10]} f5 {[%emt 0:00:07]} 15. O-O {[%emt 0:02:53]} Rf6 {[%emt 0:10:02]} 16. Nd2 {[%emt 0:05:33]} Rh6 {[%emt 0:06:20]} 17. f3 {[%emt 0:13:03]} Qh4 {[%emt 0:11:33]} 18. fxe4 {[%emt 0:06:48]} Qxh2+ {[%emt 0:13:58]} 19. Kf2 Rg6 {[%emt 0:00:00]} 20. Rg1 {[%emt 0:03:49]} Rf8 {[%emt 0:00:00]} 21. Ke2 {[%emt 0:13:04]} Rxg2+ {[%emt 0:00:00]} 22. Rxg2 {[%emt 0:00:01]} Qxg2+ {[%emt 0:00:00]} 23. Kd1 {[%emt 0:00:55]} fxe4 {[%emt 0:00:00]} 24. Bf1 {[%emt 0:03:06]} Rxf1+ {[%emt 0:00:00]} 25. Nxf1 {[%emt 0:00:01]} Qxf1+ {[%emt 0:00:00]} 26. Kd2 {[%emt 0:00:01]} Qf2+ {[%emt 0:00:00]} 27. Kd1 {[%emt 0:00:03]} Qxe3 {[%emt 0:00:00]} 28. Qxc7 {[%emt 0:00:29]} Bd5 {[%emt 0:00:00]} 29. Rc1 {[%emt 0:01:22]} Bb3+ {[%emt 0:00:00]} 30. Rc2 {[%emt 0:00:06]} Qd3+ {[%emt 0:00:04]} 31. Kc1 {[%emt 0:00:15]} Qf1+ {[%emt 0:00:08]} 32. Kd2 {[%emt 0:00:05]} e3+ {[%emt 0:00:04]} 0-1

[Event "ISR-chT 2019"]
[Site "Israel"]
[Date "2019.02.15"]
[Round "5.22"]
[White "Aharon, Ofir"]
[Black "Galburd, Yan"]
[Result "0-1"]
[ECO "C07"]
[WhiteElo "2310"]
[BlackElo "2397"]
[Annotator "NA"]
[PlyCount "73"]
[EventDate "2019.01.04"]
[EventType "team-tourn"]
[EventCountry "ISR"]
[SourceTitle "playchess.com"]
[Source "ChessBase"]
[SourceQuality "1"]
[TimeControl "40/5400+30:1800+30"]

1. e4 {[%emt 0:02:32]} e6 {[%emt 0:00:08]} 2. d4 {[%emt 0:00:28]} d5 {[%emt 0:00:06]} 3. Nd2 {[%emt 0:00:05]} c5 {[%emt 0:00:35]} 4. exd5 {[%emt 0:00:21]} Qxd5 {[%emt 0:00:44]} 5. dxc5 {[%emt 0:00:08]} Nf6 {[%emt 0:01:30]} 6. Ngf3 {[%emt 0:00:07]} Qxc5 {[%emt 0:00:37]} 7. Bd3 {[%emt 0:02:16]} Nbd7 {[%emt 0:01:38]} 8. O-O {[%emt 0:00:25]} Qc7 {[%emt 0:01:56]} 9. a4 {[%emt 0:00:57]} Be7 {[%emt 0:02:39]} 10. Nb3 {[%emt 0:00:14]} Nd5 {[%emt 0:05:22]} 11. c3 {[%emt 0:07:04]} O-O {[%emt 0:08:35]} 12. Re1 {[%emt 0:01:36]} N7f6 {[%emt 0:06:44]} 13. Nbd4 {[%emt 0:10:29]} Rd8 {[%emt 0:04:34]} 14. Ne5 {[%emt 0:02:21]} a6 {[%emt 0:06:47]} 15. Qe2 {[%emt 0:04:00]} Bd6 {[%emt 0:02:03]} 16. Ndf3 {[%emt 0:08:13]} h6 {[%emt 0:03:37]} 17. a5 {[%emt 0:06:01]} Bd7 {[%emt 0:01:09]} 18. Bb1 {[%emt 0:00:50]} Rac8 {[%emt 0:03:37]} 19. Bd2 {[%emt 0:08:58]} Bb5 {[%emt 0:02:07]} 20. Qd1 {[%emt 0:00:20]} Nd7 {[%emt 0:08:26]} 21. Nxd7 {[%emt 0:04:55]} Rxd7 {[%emt 0:00:35]} 22. Qc2 {[%emt 0:05:49]} Nf6 {[%emt 0:01:59]} 23. Be3 {[%emt 0:01:46]} Bc5 {[%emt 0:04:25]} 24. Bxc5 {[%emt 0:14:35]} Qxc5 {[%emt 0:00:06]} 25. Ba2 {[%emt 0:00:22]} Rcd8 {[%emt 0:12:22]} 26. Bb3 {[%emt 0:04:36]} Bd3 {[%emt 0:01:25]} 27. Qd2 {[%emt 0:05:19]} Bc4 {[%emt 0:01:22]} 28. Qc2 {[%emt 0:00:17]} Bd3 {[%emt 0:00:02]} 29. Qd2 {[%emt 0:00:26]} Be4 {[%emt 0:05:04]} 30. Qf4 {[%emt 0:03:27]} Bxf3 {[%emt 0:00:33]} 31. Qxf3 {[%emt 0:00:08]} Rd2 {[%emt 0:00:13]} 32. Red1 {[%emt 0:04:30]} Qb5 {[%emt 0:03:26]} 33. c4 {[%emt 0:01:59]} Qe5 {[%emt 0:02:51]} 34. Rxd2 {[%emt 0:00:38]} Rxd2 {[%emt 0:00:02]} 35. Qxb7 {[%emt 0:00:43]} Ng4 {[%emt 0:01:43]} 36. g3 {[%emt 0:00:01]} Rxf2 {[%emt 0:00:59]} 37. Bd1 {[%emt 0:01:02]} 0-1

[Event "ISR-chT 2019"]
[Site "Israel"]
[Date "2019.02.15"]
[Round "5.23"]
[White "Parkhov, Yair"]
[Black "Shachar, Ehud"]
[Result "1/2-1/2"]
[ECO "A90"]
[WhiteElo "2336"]
[BlackElo "2391"]
[Annotator "NA"]
[PlyCount "56"]
[EventDate "2019.01.04"]
[EventType "team-tourn"]
[EventCountry "ISR"]
[SourceTitle "playchess.com"]
[Source "ChessBase"]
[SourceQuality "1"]
[TimeControl "40/5400+30:1800+30"]

1. d4 {[%emt 0:00:00]} e6 {[%emt 0:00:00]} 2. Nf3 {[%emt 0:00:00]} f5 {[%emt 0:00:01]} 3. g3 {[%emt 0:00:00]} Nf6 {[%emt 0:00:05]} 4. Bg2 {[%emt 0:00:01]} d5 {[%emt 0:01:24]} 5. O-O {[%emt 0:01:42]} Bd6 {[%emt 0:00:12]} 6. c4 {[%emt 0:00:28]} c6 {[%emt 0:00:07]} 7. Ne5 {[%emt 0:00:22]} O-O {[%emt 0:02:50]} 8. Bf4 {[%emt 0:00:21]} Nh5 {[%emt 0:05:53]} 9. e3 {[%emt 0:03:00]} Nxf4 {[%emt 0:02:33]} 10. exf4 {[%emt 0:00:15]} Nd7 {[%emt 0:00:18]} 11. Nxd7 {[%emt 0:08:30]} Bxd7 {[%emt 0:00:40]} 12. Nd2 {[%emt 0:02:23]} b6 {[%emt 0:25:59]} 13. Qe2 {[%emt 0:07:51]} Rc8 {[%emt 0:02:48]} 14. Rac1 {[%emt 0:03:21]} Rc7 {[%emt 0:08:40]} 15. Rfd1 {[%emt 0:30:02]} Qf6 {[%emt 0:03:53]} 16. a3 {[%emt 0:03:16]} a5 {[%emt 0:01:35]} 17. Nb3 {[%emt 0:05:50]} a4 {[%emt 0:13:00]} 18. c5 {[%emt 0:01:09]} bxc5 {[%emt 0:01:57]} 19. Nxc5 {[%emt 0:00:39]} Bxc5 {[%emt 0:00:45]} 20. Rxc5 {[%emt 0:00:26]} Ra7 {[%emt 0:00:42]} 21. Rd2 {[%emt 0:04:02]} h6 {[%emt 0:01:00]} 22. Bf3 {[%emt 0:03:07]} g5 {[%emt 0:02:40]} 23. Qe5 {[%emt 0:00:25]} Qxe5 {[%emt 0:03:12]} 24. fxe5 {[%emt 0:00:53]} Rb8 {[%emt 0:00:53]} 25. Bd1 {[%emt 0:24:27]} Kf7 {[%emt 0:21:23]} 26. Kf1 {[%emt 0:00:00]} Ke7 {[%emt 0:00:30]} 27. Ke2 {[%emt 0:01:00]} Kd8 {[%emt 0:00:30]} 28. Kd3 {[%emt 0:00:00]} Kc7 {[%emt 0:00:30]} 1/2-1/2

[Event "ISR-chT 2019"]
[Site "Israel"]
[Date "2019.02.15"]
[Round "5.24"]
[White "Gershon, Alik"]
[Black "Mikhalevski, Alexander"]
[Result "1-0"]
[ECO "D35"]
[WhiteElo "2431"]
[BlackElo "2430"]
[Annotator "NA"]
[PlyCount "49"]
[EventDate "2019.01.04"]
[EventType "team-tourn"]
[EventCountry "ISR"]
[SourceTitle "playchess.com"]
[Source "ChessBase"]
[SourceQuality "1"]
[TimeControl "40/5400+30:1800+30"]

1. c4 {[%emt 0:00:07]} e6 {[%emt 0:00:00]} 2. d4 {[%emt 0:00:47]} d5 {[%emt 0:00:00]} 3. Nc3 {[%emt 0:00:05]} Be7 {[%emt 0:00:00]} 4. cxd5 {[%emt 0:00:31]} exd5 {[%emt 0:00:03]} 5. Bf4 {[%emt 0:00:12]} Nf6 {[%emt 0:00:07]} 6. e3 {[%emt 0:00:12]} O-O {[%emt 0:00:09]} 7. Bd3 {[%emt 0:00:15]} c5 {[%emt 0:00:08]} 8. Nge2 {[%emt 0:00:37]} Nc6 {[%emt 0:00:10]} 9. O-O {[%emt 0:00:31]} c4 {[%emt 0:04:28]} 10. Bc2 {[%emt 0:01:27]} a6 {[%emt 0:00:08]} 11. a4 {[%emt 0:02:01]} Nh5 {[%emt 0:00:48]} 12. b3 {[%emt 0:00:34]} Qa5 {[%emt 0:01:37]} 13. bxc4 {[%emt 0:05:33]} Nxf4 {[%emt 0:00:31]} 14. Nxf4 {[%emt 0:00:07]} dxc4 {[%emt 0:09:33]} 15. Ncd5 {[%emt 0:00:07]} Bd8 {[%emt 0:06:22]} 16. Ra3 {[%emt 0:23:29]} g5 {[%emt 0:15:07]} 17. Qh5 {[%emt 0:17:33]} f5 {[%emt 0:00:25]} 18. e4 {[%emt 0:08:13]} gxf4 {[%emt 0:01:25]} 19. Rh3 {[%emt 0:05:32]} Rf7 {[%emt 0:00:54]} 20. Nxf4 {[%emt 0:00:04]} Bd7 {[%emt 0:16:22]} 21. Qh6 {[%emt 0:03:15]} Ne7 {[%emt 0:11:05]} 22. e5 {[%emt 0:05:06]} Bb6 {[%emt 0:22:09]} 23. Nh5 {[%emt 0:10:12]} Ng6 {[%emt 0:04:43]} 24. Nf6+ {[%emt 0:00:30]} Rxf6 {[%emt 0:00:09]} 25. Qxh7+ {[%emt 0:00:13]} 1-0

[Event "ISR-chT 2019"]
[Site "Israel"]
[Date "2019.02.15"]
[Round "5.30"]
[White "Bitensky, Igor"]
[Black "Mikhalevski, Victor"]
[Result "1/2-1/2"]
[ECO "C60"]
[WhiteElo "2373"]
[BlackElo "2581"]
[Annotator "ChessBase"]
[PlyCount "56"]
[EventDate "2019.01.04"]
[EventType "team-tourn"]
[EventCountry "ISR"]
[SourceTitle "playchess.com"]
[Source "ChessBase"]
[SourceQuality "1"]
[TimeControl "40/5400+30:1800+30"]

1. e4 {[%emt 0:04:28]} e5 {[%emt 0:00:56]} 2. Nf3 {[%emt 0:00:08]} Nc6 {[%emt 0:00:06]} 3. Bb5 {[%emt 0:01:38]} g6 {[%emt 0:01:36]} 4. c3 {[%emt 0:02:03]} Bg7 {[%emt 0:01:01]} 5. O-O {[%emt 0:02:11]} a6 {[%emt 0:01:02]} 6. Ba4 {[%emt 0:00:30]} Nge7 {[%emt 0:00:53]} 7. d4 {[%emt 0:00:46]} exd4 {[%emt 0:00:29]} 8. cxd4 {[%emt 0:00:01]} b5 {[%emt 0:00:12]} 9. Bc2 {[%emt 0:01:26]} d6 {[%emt 0:00:11]} 10. h3 {[%emt 0:00:33]} O-O {[%emt 0:00:10]} 11. Nc3 {[%emt 0:00:12]} Na5 {[%emt 0:02:08]} 12. Ne2 {[%emt 0:02:43]} c5 {[%emt 0:02:50]} 13. d5 {[%emt 0:01:24]} Nc4 {[%emt 0:10:45]} 14. Rb1 {[%emt 0:00:46]} f5 {[%emt 0:02:05]} 15. b3 {[%emt 0:01:16]} Ne5 {[%emt 0:07:27]} 16. Nxe5 {[%emt 0:03:50]} Bxe5 {[%emt 0:02:57]} 17. Bb2 {[%emt 0:25:09]} Bxb2 {[%emt 0:05:15]} 18. Rxb2 {[%emt 0:00:01]} f4 {[%emt 0:15:22]} 19. f3 {[%emt 0:06:52]} g5 {[%emt 0:00:18]} 20. e5 {[%emt 0:06:39]} Bf5 {[%emt 0:03:07]} 21. g4 {[%emt 0:10:42]} fxg3 {[%emt 0:09:58]} 22. Nxg3 {[%emt 0:00:02]} dxe5 {[%emt 0:01:17]} 23. d6 {[%emt 0:03:07]} Bxc2 24. Rxc2 {[%emt 0:00:01]} Ng6 {[%emt 0:01:34]} 25. Qd5+ {[%emt 0:04:33]} Kh8 {[%emt 0:03:34]} 26. Ne4 {[%emt 0:09:31]} Qd7 {[%emt 0:03:38]} 27. Nxc5 {[%emt 0:02:35]} Qxh3 {[%emt 0:06:18]} 28. Ne6 {[%emt 0:00:03]} Rae8 {[%emt 0:09:10]} 1/2-1/2